bitfinex/quotes_BTCUSD_20250127
["timestamp","ask_amount","ask_price","bid_price","bid_amount"]
[1737997657428,0.150097,99936.0,99929.0,0.15504087]
[1737997657829,0.150097,99935.0,99929.0,0.15504087]
[1737997658291,0.0021416,99930.0,99929.0,0.00493487]
[1737997658491,0.09948889,99930.0,99918.0,0.08089736]
[1737997658715,0.150108,99928.0,99921.0,0.150117]
[1737997658921,0.09734729,99927.0,99918.0,0.08089736]
[1737997659175,0.09859834,99927.0,99919.0,0.200161]
[1737997659378,0.09859834,99927.0,99923.0,0.150114]
[1737997659620,0.09734729,99927.0,99923.0,0.150114]
[1737997659972,0.09734729,99927.0,99924.0,0.00493487]
[1737997660171,0.09734729,99927.0,99925.0,0.150112]
[1737997660403,0.009,99928.0,99927.0,0.150109]
[1737997660941,0.009,99928.0,99927.0,0.23084387]
[1737997661692,0.24945529,99928.0,99927.0,0.08073487]
[1737997661902,0.24945529,99928.0,99927.0,0.0758]
[1737997662099,0.15012,99920.0,99918.0,0.07919736]
[1737997662388,0.200152,99924.0,99918.0,0.07919736]
[1737997662389,0.009,99927.0,99918.0,0.07919736]
[1737997662593,0.15012,99920.0,99919.0,0.00492695]
[1737997662812,0.150121,99919.0,99918.0,0.07919736]
[1737997663017,0.150121,99919.0,99918.0,0.00029736]
[1737997663018,0.3987194,99919.0,99918.0,0.00029736]
[1737997663236,0.24746829,99919.0,99918.0,0.00029736]
[1737997663655,0.72636829,99919.0,99918.0,0.00029736]
[1737997664086,0.330124,99917.0,99916.0,9.3e-07]
[1737997664298,0.45047129,99917.0,99916.0,9.3e-07]
[1737997664503,0.41747129,99917.0,99916.0,9.3e-07]
[1737997664724,0.39747129,99917.0,99916.0,9.3e-07]
[1737997665547,0.40147129,99917.0,99916.0,9.3e-07]
[1737997665777,0.41047129,99917.0,99916.0,9.3e-07]
[1737997666664,0.40147129,99917.0,99916.0,9.3e-07]
[1737997666870,0.39747129,99917.0,99916.0,9.3e-07]
[1737997667079,0.40247129,99917.0,99916.0,9.3e-07]
[1737997668559,0.40647129,99917.0,99916.0,9.3e-07]
[1737997668974,0.39747129,99917.0,99916.0,9.3e-07]
[1737997669183,0.40647129,99917.0,99916.0,9.3e-07]
[1737997669798,0.150148,99901.0,99883.0,0.0781]
[1737997670012,0.39874682,99901.0,99883.0,0.0781]
[1737997670230,0.39749529,99901.0,99883.0,0.0781]
[1737997670654,0.24749529,99901.0,99883.0,0.0781]
[1737997671084,0.24757444,99901.0,99885.0,0.150172]
[1737997671312,0.24757444,99901.0,99883.0,0.0781]
[1737997671512,0.25257444,99901.0,99883.0,0.0781]
[1737997671950,0.26157444,99901.0,99883.0,0.228274]
[1737997672159,0.26157444,99901.0,99883.0,0.0781]
[1737997672700,0.25257444,99901.0,99883.0,0.0781]
[1737997672943,0.25182444,99901.0,99883.0,0.0781]
[1737997673138,0.25582444,99901.0,99883.0,0.0781]
[1737997673316,0.25982444,99901.0,99883.0,0.0781]
[1737997673665,0.40582444,99901.0,99883.0,0.0781]
[1737997674087,0.40982444,99901.0,99883.0,0.0781]
[1737997674314,0.73872444,99901.0,99881.0,0.0472]
[1737997674548,0.03,99889.0,99862.0,0.07689694]
[1737997674753,0.39755229,99863.0,99862.0,0.00049694]
[1737997675985,0.39755229,99863.0,99862.0,0.00099943]
[1737997676235,0.40655229,99863.0,99862.0,0.00099943]
[1737997676676,0.42677478,99863.0,99862.0,0.00099943]
[1737997677340,0.44092231,99863.0,99862.0,0.00099943]
[1737997678010,0.42792231,99863.0,99862.0,0.00099943]
[1737997678207,0.43692231,99863.0,99862.0,0.00099943]
[1737997678613,0.44609816,99863.0,99862.0,0.00099943]
[1737997678981,0.45509816,99863.0,99862.0,0.00099943]
[1737997679227,0.44609816,99863.0,99862.0,0.00099943]
[1737997679680,0.43692231,99863.0,99862.0,0.00099943]
[1737997679950,0.44092231,99863.0,99862.0,0.00099943]
[1737997680468,0.43692231,99863.0,99862.0,0.00099943]
[1737997680747,0.44292231,99863.0,99862.0,0.00099943]
[1737997681024,0.320208,99861.0,99860.0,2e-08]
[1737997681265,0.46676252,99861.0,99860.0,1.5e-07]
[1737997681731,0.46008202,99861.0,99860.0,1.5e-07]
[1737997681940,0.45760033,99861.0,99860.0,1.5e-07]
[1737997682144,0.45624345,99861.0,99860.0,1.5e-07]
[1737997682554,0.46524345,99861.0,99860.0,1.5e-07]
[1737997682787,0.30624345,99861.0,99860.0,1.5e-07]
[1737997683165,0.45624345,99861.0,99860.0,1.5e-07]
[1737997683372,0.4271982,99861.0,99860.0,1.5e-07]
[1737997683786,0.51772506,99861.0,99860.0,1.5e-07]
[1737997683996,0.56493179,99861.0,99860.0,1.5e-07]
[1737997684204,0.57093179,99861.0,99860.0,1.5e-07]
[1737997684411,0.300235,99843.0,99842.0,0.00029736]
[1737997684633,0.39758229,99843.0,99842.0,0.00080413]
[1737997685381,0.41794176,99843.0,99842.0,0.00080413]
[1737997686151,0.44509504,99843.0,99842.0,0.00080413]
[1737997686405,0.43609504,99843.0,99842.0,0.00080413]
[1737997686684,0.45009504,99843.0,99842.0,0.00080413]
[1737997687099,0.44509504,99843.0,99842.0,0.00080413]
[1737997687572,0.45009504,99843.0,99842.0,0.00080413]
[1737997687793,0.44509504,99843.0,99842.0,0.00080413]
[1737997688007,0.44616851,99843.0,99842.0,0.00080413]
[1737997688289,0.44201523,99843.0,99842.0,0.00080413]
[1737997688767,0.300238,99841.0,99830.0,0.0456]
[1737997688973,0.40758529,99841.0,99840.0,0.00221038]
[1737997689193,0.300267,99822.0,99815.0,0.0455]
[1737997689452,0.39761429,99822.0,99821.0,0.00079228]
[1737997690049,0.44473481,99822.0,99821.0,0.00079228]
[1737997690247,0.46433095,99822.0,99821.0,0.00079228]
[1737997690711,0.46633095,99822.0,99821.0,0.00079228]
[1737997691322,0.47631243,99822.0,99821.0,0.00079228]
[1737997691766,0.48531243,99822.0,99821.0,0.00079228]
[1737997692589,0.47431243,99822.0,99821.0,0.00079228]
[1737997692794,0.48731243,99822.0,99821.0,0.00079228]
[1737997693001,0.58465972,99822.0,99821.0,0.00079228]
[1737997693218,0.81621243,99822.0,99821.0,2.8e-07]
[1737997693795,0.81221243,99822.0,99821.0,2.8e-07]
[1737997694195,0.81621243,99822.0,99821.0,2.8e-07]
[1737997694416,0.300291,99806.0,99799.0,0.0458]
[1737997694577,0.39763829,99806.0,99805.0,0.00015115]
[1737997694781,0.5126974,99806.0,99805.0,0.00015115]
[1737997695006,0.55981792,99806.0,99805.0,1.5e-07]
[1737997695230,0.52593069,99806.0,99805.0,1.5e-07]
[1737997695843,0.54093069,99806.0,99805.0,1.5e-07]
[1737997696283,0.53493069,99806.0,99805.0,1.5e-07]
[1737997696499,0.300306,99796.0,99795.0,0.0151381]
[1737997696770,0.39765329,99796.0,99795.0,0.01563482]
[1737997696938,0.49500058,99796.0,99795.0,0.01563482]
[1737997697182,0.50832008,99796.0,99795.0,8.2e-07]
[1737997697375,0.300341,99773.0,99772.0,0.0755]
[1737997697579,0.39768829,99773.0,99772.0,0.07554985]
[1737997697835,0.24768829,99773.0,99772.0,0.08288934]
[1737997698161,0.99480881,99773.0,99772.0,0.07554985]
[1737997698880,1.15380881,99773.0,99772.0,0.07554985]
[1737997699081,1.14480881,99773.0,99772.0,0.07554985]
[1737997699698,1.14880881,99773.0,99772.0,4.985e-05]
[1737997699909,1.14709682,99773.0,99772.0,4.985e-05]
[1737997700138,1.15609682,99773.0,99772.0,4.985e-05]
[1737997700339,1.15209682,99773.0,99772.0,4.985e-05]
[1737997700571,1.15609682,99773.0,99772.0,4.985e-05]
[1737997701463,1.14709682,99773.0,99772.0,4.985e-05]
[1737997701667,1.15609682,99773.0,99772.0,4.985e-05]
[1737997701870,1.14309682,99773.0,99772.0,4.985e-05]
[1737997702321,1.15609682,99773.0,99772.0,4.985e-05]
[1737997702524,1.25344411,99773.0,99772.0,4.985e-05]
[1737997702698,1.25344411,99773.0,99772.0,8.5e-07]
[1737997702905,1.24944411,99773.0,99772.0,8.5e-07]
[1737997703101,1.24944411,99773.0,99760.0,0.0001416]
[1737997703102,0.300359,99761.0,99760.0,0.0001416]
[1737997703303,1.09770629,99761.0,99760.0,0.00029229]
[1737997704395,1.14482681,99761.0,99760.0,0.00029229]
[1737997704819,1.15382681,99761.0,99760.0,0.00029229]
[1737997705050,1.14482681,99761.0,99760.0,0.00029229]
[1737997705404,1.15682681,99761.0,99760.0,0.00029229]
[1737997705606,1.14782681,99761.0,99760.0,0.00036948]
[1737997705833,1.14482681,99761.0,99760.0,0.00036948]
[1737997706044,1.01363784,99761.0,99760.0,0.00036948]
[1737997706240,1.16899684,99761.0,99760.0,0.00036948]
[1737997706579,1.26634413,99761.0,99760.0,0.00036948]
[1737997706780,1.18917586,99761.0,99760.0,0.00036948]
[1737997706985,1.18417586,99761.0,99760.0,0.00036948]
[1737997707606,0.150383,99745.0,99744.0,0.0809]
[1737997707781,0.150383,99745.0,99744.0,0.08104658]
[1737997707782,0.94773029,99745.0,99744.0,0.08104658]
[1737997708368,1.14485081,99745.0,99744.0,0.08104658]
[1737997708571,0.44485081,99745.0,99744.0,0.08104658]
[1737997708946,0.48025223,99745.0,99744.0,0.08104658]
[1737997709092,0.48425223,99745.0,99744.0,0.08104658]
[1737997709547,0.50482676,99745.0,99744.0,0.08104658]
[1737997709958,0.47842534,99745.0,99744.0,0.08104658]
[1737997710119,0.47442534,99745.0,99744.0,0.08104658]
[1737997710767,0.47572083,99745.0,99744.0,0.00014658]
[1737997710923,0.47883598,99745.0,99744.0,0.00014658]
[1737997711589,1.17883598,99745.0,99744.0,0.00014658]
[1737997711801,1.18283598,99745.0,99744.0,0.00014658]
[1737997712139,1.17883598,99745.0,99744.0,0.00014658]
[1737997712374,1.18283598,99745.0,99744.0,0.00014658]
[1737997713466,0.48283598,99745.0,99744.0,0.00014658]
[1737997713655,0.47883598,99745.0,99744.0,0.00014658]
[1737997713850,0.46983598,99745.0,99744.0,0.00014658]
[1737997714175,0.47883598,99745.0,99744.0,0.00014658]
[1737997715026,0.45584408,99745.0,99744.0,0.00014658]
[1737997715446,0.44684408,99745.0,99744.0,0.00014658]
[1737997715645,0.44084408,99745.0,99744.0,0.00014658]
[1737997715864,0.45684408,99745.0,99744.0,0.00014658]
[1737997716127,0.15,99744.0,99729.0,0.07644658]
[1737997716310,0.300406,99730.0,99729.0,0.07649681]
[1737997716532,0.39775329,99730.0,99729.0,0.07649681]
[1737997716748,0.4342974,99730.0,99729.0,5.023e-05]
[1737997716959,0.53717933,99730.0,99729.0,5.023e-05]
[1737997717175,0.53816177,99730.0,99729.0,2.3e-07]
[1737997717389,0.56229352,99730.0,99729.0,2.3e-07]
[1737997717600,0.45612361,99730.0,99729.0,0.00014203]
[1737997718019,3.08774978,99730.0,99729.0,1e-08]
[1737997718232,0.52354978,99730.0,99729.0,1e-08]
[1737997718442,0.51454978,99730.0,99729.0,1e-08]
[1737997718661,0.300455,99697.0,99695.0,0.0001417]
[1737997718871,1.103108,99718.0,99681.0,0.0479]
[1737997718872,0.150478,99682.0,99681.0,0.0479]
[1737997719076,0.39907949,99682.0,99681.0,0.0479]
[1737997719280,0.41783674,99682.0,99681.0,0.1233]
[1737997719492,0.41783674,99682.0,99681.0,0.07851141]
[1737997719493,0.49974641,99682.0,99681.0,0.07851141]
[1737997719709,0.49974641,99682.0,99624.0,0.200752]
[1737997719710,0.300508,99662.0,99624.0,0.200752]
[1737997719973,0.15,99643.0,99623.0,0.0017171]
[1737997720183,0.1506,99601.0,99594.0,0.0151381]
[1737997720391,0.1506,99601.0,99563.0,0.02237644]
[1737997720392,0.150654,99566.0,99564.0,0.0066805]
[1737997720599,0.150654,99566.0,99563.0,0.02237644]
[1737997720811,0.300656,99564.0,99563.0,0.02237644]
[1737997721039,1.970356,99564.0,99563.0,0.02237644]
[1737997721265,0.300699,99536.0,99533.0,0.7]
[1737997721469,0.39804629,99536.0,99533.0,0.7]
[1737997721679,0.45452805,99536.0,99533.0,0.7]
[1737997721895,0.150702,99534.0,99533.0,0.53551]
[1737997722113,0.91330536,99534.0,99533.0,0.43151]
[1737997722320,0.39804929,99534.0,99533.0,0.30416936]
[1737997722561,0.0133195,99510.0,99500.0,0.05223382]
[1737997722767,0.150752,99501.0,99500.0,0.05223382]
[1737997722973,0.24809929,99501.0,99500.0,0.05113382]
[1737997723181,0.25809929,99501.0,99500.0,0.05113382]
[1737997723392,0.01,99491.0,99469.0,0.00081058]
[1737997723628,0.30202476,99490.0,99489.0,0.31147377]
[1737997723849,1.35431529,99490.0,99489.0,0.20107686]
[1737997724057,0.24811529,99490.0,99489.0,0.18065499]
[1737997724271,0.41845222,99490.0,99489.0,0.18065499]
[1737997724489,3.34507362,99490.0,99489.0,0.08016499]
[1737997724705,0.300796,99472.0,99469.0,0.00081058]
[1737997724927,0.41346329,99472.0,99469.0,0.00081058]
[1737997725351,0.150802,99468.0,99459.0,0.0066805]
[1737997725559,0.15083,99450.0,99447.0,0.0064057]
[1737997725764,0.01,99493.0,99450.0,0.0066805]
[1737997725974,0.09734729,99456.0,99447.0,0.0064057]
[1737997726183,0.150832,99448.0,99447.0,0.0064057]
[1737997726411,0.300832,99448.0,99447.0,0.0064057]
[1737997726596,0.30067949,99448.0,99447.0,0.0064057]
[1737997726813,0.37590762,99448.0,99447.0,0.0064057]
[1737997727060,0.30087,99423.0,99422.0,0.0034849]
[1737997727309,0.150891,99409.0,99408.0,0.00083173]
[1737997727535,1.03823829,99409.0,99408.0,0.00083173]
[1737997727785,0.39823829,99409.0,99408.0,0.00083173]
[1737997727997,0.09734729,99409.0,99408.0,0.00083173]
[1737997728206,0.09734729,99409.0,99408.0,0.15840523]
[1737997728423,0.09734729,99409.0,99408.0,0.16924575]
[1737997728642,0.00125756,99435.0,99434.0,0.00251223]
[1737997728883,0.00125756,99435.0,99420.0,0.201165]
[1737997728884,0.09734729,99435.0,99420.0,0.00251223]
[1737997729114,0.09734729,99435.0,99400.0,0.22441]
[1737997729115,0.09734729,99435.0,99433.0,0.00251223]
[1737997729330,0.09784045,99435.0,99434.0,0.00251223]
[1737997729545,0.09784045,99435.0,99434.0,0.01019524]
[1737997729764,0.09784045,99435.0,99434.0,0.00251223]
[1737997729986,0.00049316,99435.0,99434.0,0.15336523]
[1737997730211,0.00049316,99435.0,99434.0,0.31071595]
[1737997730435,0.01004065,99459.0,99458.0,0.15332923]
[1737997730646,0.200983,99511.0,99489.0,0.0752]
[1737997730854,0.09734729,99500.0,99499.0,0.15326723]
[1737997731067,0.09684729,99500.0,99491.0,0.00251223]
[1737997731284,0.09734729,99499.0,99479.0,0.00251223]
[1737997731499,0.09734729,99490.0,99458.0,0.0752]
[1737997731734,0.09734729,99490.0,99487.0,0.00251223]
[1737997731953,0.00029883,99522.0,99499.0,0.00251223]
[1737997732162,0.09734729,99501.0,99492.0,0.150764]
[1737997732381,0.09734729,99501.0,99500.0,0.15326523]
[1737997732600,0.09734729,99501.0,99500.0,0.00251223]
[1737997732872,0.00029883,99522.0,99494.0,0.201015]
[1737997733088,0.09734729,99521.0,99493.0,0.023]
[1737997733302,0.09674501,99521.0,99495.0,0.023]
[1737997733524,0.09674501,99521.0,99510.0,0.150738]
[1737997733731,0.15,99515.0,99491.0,0.201023]
[1737997733941,0.0012564,99514.0,99495.0,0.00014677]
[1737997734173,0.08420594,99516.0,99515.0,0.150731]
[1737997734382,0.08420594,99516.0,99495.0,0.00014677]
[1737997734597,0.150755,99499.0,99495.0,0.00014677]
[1737997734811,0.150759,99496.0,99495.0,0.00014677]
[1737997735016,0.24810629,99496.0,99495.0,0.00014677]
[1737997735453,0.09734729,99496.0,99495.0,0.15090777]
[1737997735909,0.01013816,99522.0,99495.0,0.00014677]
[1737997736122,0.150737,99511.0,99495.0,0.00014677]
[1737997736336,0.09860361,99510.0,99495.0,0.00014677]
[1737997736553,0.09860361,99510.0,99506.0,0.150744]
[1737997736802,0.00029883,99522.0,99495.0,0.00014677]
[1737997737016,0.00029883,99522.0,99521.0,0.150721]
[1737997737226,0.00029883,99522.0,99501.0,0.01]
[1737997737227,0.09754612,99522.0,99512.0,0.20098]
[1737997737437,0.09860336,99521.0,99492.0,0.0899]
[1737997737651,0.09860336,99521.0,99492.0,0.0799]
[1737997737870,0.09734729,99514.0,99492.0,0.0799]
[1737997738091,0.150759,99496.0,99492.0,0.0799]
[1737997738303,0.2493627,99496.0,99492.0,0.0799]
[1737997738510,0.24810629,99496.0,99492.0,0.0799]
[1737997739158,0.39810629,99496.0,99490.0,0.03645907]
[1737997739414,0.39810629,99496.0,99471.0,0.0828]
[1737997739617,2.81530629,99496.0,99471.0,0.0828]
[1737997739830,2.14152629,99496.0,99450.0,0.246704]
[1737997740038,2.14152629,99496.0,99450.0,0.0456]
[1737997740240,0.42344816,99496.0,99463.0,0.201079]
[1737997740451,0.42344816,99496.0,99469.0,0.1508]
[1737997740680,0.40812816,99496.0,99473.0,0.150793]
[1737997740893,0.40812816,99496.0,99470.0,0.201065]
[1737997741121,2.64421736,99496.0,99456.0,0.150819]
[1737997741338,2.64421736,99496.0,99450.0,0.0456]
[1737997741339,3.32471736,99496.0,99450.0,0.0456]
[1737997741769,2.88222816,99496.0,99454.0,0.201097]
[1737997742060,0.40812816,99496.0,99472.0,0.20106]
[1737997742282,0.25812816,99496.0,99452.0,0.201101]
[1737997742503,2.97232816,99496.0,99452.0,0.201101]
[1737997742726,0.40812816,99496.0,99457.0,0.20109]
[1737997742942,0.25812816,99496.0,99483.0,0.150778]
[1737997743157,0.25812816,99496.0,99461.0,0.201082]
[1737997743370,0.25812816,99496.0,99470.0,0.150799]
[1737997743371,0.24810629,99496.0,99470.0,0.150799]
[1737997743824,0.24810629,99496.0,99466.0,0.201071]
[1737997744030,0.24840512,99496.0,99481.0,0.150782]
[1737997744233,0.24840512,99496.0,99464.0,0.150807]
[1737997744438,0.24840512,99496.0,99458.0,0.201089]
[1737997744870,0.24840512,99496.0,99469.0,0.201065]
[1737997745080,0.24840512,99496.0,99480.0,0.201044]
[1737997745283,0.24840512,99496.0,99456.0,0.201093]
[1737997745489,0.24840512,99496.0,99467.0,0.20107]
[1737997745710,0.24840512,99496.0,99462.0,0.201081]
[1737997745911,0.24840512,99496.0,99467.0,0.201071]
[1737997746115,0.24840512,99496.0,99479.0,0.150784]
[1737997746335,0.24840512,99496.0,99472.0,0.201059]
[1737997746545,0.24840512,99496.0,99483.0,0.201038]
[1737997746764,0.24840512,99496.0,99495.0,0.07544677]
[1737997746976,0.00029883,99496.0,99495.0,0.12344677]
[1737997747184,0.00029883,99496.0,99495.0,0.27420777]
[1737997747410,0.00029883,99496.0,99495.0,0.28237962]
[1737997748673,0.00029883,99496.0,99495.0,0.30537962]
[1737997748887,0.200937,99534.0,99521.0,0.150721]
[1737997749100,0.001256,99533.0,99521.0,0.150721]
[1737997749314,0.05002798,99615.0,99521.0,0.150721]
[1737997749315,0.200931,99537.0,99521.0,0.15871932]
[1737997749525,0.200941,99532.0,99521.0,0.00799832]
[1737997749779,0.150723,99520.0,99497.0,0.0203969]
[1737997750001,0.35188083,99522.0,99521.0,0.00799832]
[1737997750208,0.150759,99496.0,99481.0,0.201041]
[1737997750421,0.200985,99510.0,99486.0,0.201031]
[1737997750631,0.150759,99496.0,99495.0,0.13000343]
[1737997750870,0.150759,99496.0,99495.0,0.12344677]
[1737997751083,0.200958,99524.0,99495.0,0.27420677]
[1737997751293,0.24810629,99496.0,99495.0,0.12344677]
[1737997751729,0.15,99519.0,99497.0,0.150757]
[1737997751934,0.09734729,99518.0,99498.0,0.02742038]
[1737997752182,0.00019883,99522.0,99520.0,0.150722]
[1737997752386,0.00019883,99522.0,99521.0,0.150721]
[1737997752794,0.00019883,99522.0,99521.0,0.173721]
[1737997753002,0.00019883,99522.0,99521.0,0.249721]
[1737997753212,0.200908,99548.0,99526.0,0.200951]
[1737997753433,0.09734729,99547.0,99538.0,0.0459]
[1737997753636,0.150687,99544.0,99538.0,0.196595]
[1737997753848,0.200875,99565.0,99538.0,0.0459]
[1737997754050,0.09734729,99564.0,99538.0,0.0459]
[1737997754262,0.00943292,99586.0,99540.0,0.26980441]
[1737997754480,0.09734729,99585.0,99550.0,0.200904]
[1737997754734,0.00049416,99586.0,99549.0,0.0472]
[1737997754735,0.00049416,99586.0,99585.0,0.0791]
[1737997754949,0.00049416,99586.0,99585.0,0.229725]
[1737997755587,0.00029883,99590.0,99589.0,0.150619]
[1737997755799,0.00029883,99590.0,99589.0,0.17376577]
[1737997756037,0.150566,99624.0,99589.0,0.11133338]
[1737997756254,0.200747,99628.0,99595.0,0.150609]
[1737997756463,0.200738,99633.0,99600.0,0.173602]
[1737997756675,4.2501,99601.0,99600.0,0.173602]
[1737997756852,4.2501,99601.0,99600.0,0.28094929]
[1737997757102,3.5002,99601.0,99600.0,0.52128832]
[1737997757375,2.7503,99601.0,99600.0,0.54128832]
[1737997757583,2.316,99601.0,99600.0,0.54614188]
[1737997757787,2.2058,99601.0,99600.0,0.54614188]
[1737997757994,1.39566,99601.0,99600.0,0.54614188]
[1737997758213,0.7276998,99601.0,99600.0,0.55626755]
[1737997758427,0.200617,99693.0,99650.0,0.200701]
[1737997758658,0.09734729,99685.0,99651.0,0.10734729]
[1737997758861,0.09734729,99685.0,99679.0,0.150482]
[1737997759078,0.200572,99715.0,99680.0,0.0150482]
[1737997759079,0.200608,99697.0,99680.0,0.0150482]
[1737997759294,0.26980441,99730.0,99658.0,0.01]
[1737997759497,0.09860121,99704.0,99658.0,0.10734729]
[1737997759705,0.09860121,99704.0,99644.0,0.01]
[1737997759706,0.200613,99694.0,99644.0,0.01]
[1737997759957,0.09860138,99693.0,99644.0,0.09734729]
[1737997760168,0.551702,99691.0,99644.0,0.09734729]
[1737997760377,0.351104,99685.0,99645.0,0.01273473]
[1737997760589,0.4486,99676.0,99616.0,0.01]
[1737997760794,0.4486,99676.0,99614.0,0.15058]
[1737997760795,0.15,99659.0,99614.0,0.15058]
[1737997761002,0.14625467,99659.0,99596.0,0.01]
[1737997761246,0.09734729,99647.0,99597.0,0.09734729]
[1737997761448,0.200729,99637.0,99598.0,0.01183885]
[1737997761678,0.09830354,99636.0,99598.0,0.00100375]
[1737997761890,0.150577,99617.0,99594.0,0.150611]
[1737997762098,0.09734729,99636.0,99595.0,0.00100381]
[1737997762311,0.09734729,99636.0,99608.0,0.200786]
[1737997762554,0.09734729,99636.0,99609.0,0.00100376]
[1737997762765,0.09734729,99636.0,99594.0,0.00014677]
[1737997762971,0.150587,99610.0,99594.0,0.00014677]
[1737997763179,0.150566,99624.0,99596.0,0.401622]
[1737997763388,0.081,99634.0,99601.0,0.01]
[1737997763601,0.081,99654.0,99606.0,0.01]
[1737997763799,0.081,99654.0,99633.0,0.150551]
[1737997763800,0.09830354,99653.0,99633.0,0.150551]
[1737997764001,0.200702,99650.0,99614.0,0.01]
[1737997764205,0.09734729,99649.0,99615.0,0.04916204]
[1737997764413,0.150552,99634.0,99615.0,0.00100354]
[1737997764617,0.200712,99645.0,99615.0,0.00100354]
[1737997764822,0.200696,99653.0,99616.0,0.09734729]
[1737997765045,0.081,99654.0,99622.0,0.01]
[1737997765262,0.200658,99672.0,99649.0,0.200703]
[1737997765469,0.09734729,99671.0,99649.0,0.0200703]
[1737997765676,0.150498,99669.0,99650.0,0.0010034]
[1737997765885,0.09734729,99668.0,99636.0,0.01]
[1737997766104,0.09734729,99668.0,99634.0,0.00100336]
[1737997766105,0.0832,99674.0,99639.0,0.200724]
[1737997766347,0.09734729,99673.0,99640.0,0.09835059]
[1737997766550,0.150506,99664.0,99655.0,0.150519]
[1737997766759,0.09734729,99673.0,99657.0,0.200688]
[1737997766979,0.09734729,99673.0,99658.0,0.0010033]
[1737997767186,0.20066,99671.0,99656.0,0.0150519]
[1737997767395,0.09734729,99673.0,99657.0,0.200688]
[1737997767658,0.09734729,99673.0,99659.0,0.200684]
[1737997767866,0.150499,99669.0,99662.0,0.150508]
[1737997768084,0.08620065,99692.0,99664.0,0.200674]
[1737997768297,0.00029821,99672.0,99671.0,0.150495]
[1737997769767,0.00029821,99672.0,99671.0,0.00014677]
[1737997769990,0.00029821,99672.0,99671.0,0.15064177]
[1737997771049,0.00029821,99672.0,99671.0,0.1516449]
[1737997771258,0.00029821,99672.0,99671.0,0.20894329]
[1737997771486,0.00029821,99672.0,99671.0,0.20794016]
[1737997771699,0.00029821,99672.0,99671.0,0.45528745]
[1737997771904,0.00029821,99672.0,99671.0,0.49828745]
[1737997772320,0.00029821,99672.0,99671.0,0.50828745]
[1737997773622,0.00029821,99672.0,99671.0,0.49828745]
[1737997773823,0.00029821,99672.0,99671.0,0.47828745]
[1737997774084,0.00029821,99672.0,99671.0,0.35794016]
[1737997774856,0.00029821,99672.0,99671.0,0.37794016]
[1737997775423,0.00029821,99672.0,99671.0,0.50828745]
[1737997775668,0.00029821,99672.0,99671.0,0.15064177]
[1737997775911,0.00029821,99672.0,99671.0,0.15164483]
[1737997776181,0.00029821,99672.0,99671.0,0.42199212]
[1737997776425,0.00029821,99672.0,99671.0,0.43098906]
[1737997776693,0.00029821,99672.0,99671.0,0.45098906]
[1737997776925,0.0156563,99707.0,99706.0,0.150442]
[1737997777416,0.0156563,99707.0,99688.0,0.200625]
[1737997777654,0.0156563,99707.0,99703.0,0.150445]
[1737997777889,0.0156563,99707.0,99689.0,0.09734729]
[1737997778122,0.0156563,99707.0,99697.0,0.200606]
[1737997778356,0.01615107,99707.0,99698.0,0.0010029]
[1737997778603,0.01615107,99707.0,99692.0,0.00100291]
[1737997779115,0.200589,99706.0,99692.0,0.00100291]
[1737997779380,0.200589,99706.0,99670.0,0.01969762]
[1737997779381,0.09830354,99706.0,99670.0,0.01969762]
[1737997779623,0.09734729,99706.0,99673.0,0.15]
[1737997779856,0.09734729,99706.0,99674.0,0.09835029]
[1737997780099,0.01615107,99707.0,99674.0,0.09835029]
[1737997780100,0.01615107,99707.0,99706.0,0.150442]
[1737997780341,0.01615107,99707.0,99706.0,0.0150442]
[1737997780664,0.01615107,99707.0,99706.0,0.150442]
[1737997781499,0.01928891,99707.0,99706.0,0.15144485]
[1737997782247,0.01928891,99707.0,99702.0,0.200597]
[1737997782467,0.01928891,99707.0,99696.0,0.401218]
[1737997782671,0.150442,99706.0,99699.0,0.150452]
[1737997782874,0.150442,99706.0,99697.0,0.26275206]
[1737997782875,0.01928891,99707.0,99693.0,0.200614]
[1737997783124,0.200591,99705.0,99668.0,0.00990889]
[1737997783330,0.09734729,99704.0,99675.0,0.01981637]
[1737997783537,0.00815838,99706.0,99676.0,0.09835027]
[1737997783747,0.00815838,99706.0,99679.0,0.023]
[1737997783944,0.200603,99700.0,99680.0,0.00100293]
[1737997784172,0.200593,99704.0,99677.0,0.02681666]
[1737997784375,0.15045,99701.0,99682.0,0.200638]
[1737997784593,0.00815838,99706.0,99683.0,0.00100297]
[1737997784779,0.00815838,99706.0,99684.0,0.0238487]
[1737997784992,0.29793829,99705.0,99684.0,0.0238487]
[1737997785208,0.150473,99685.0,99673.0,0.200654]
[1737997785416,0.082,99685.0,99675.0,0.150488]
[1737997785658,0.082,99685.0,99677.0,0.200648]
[1737997785861,0.00815838,99699.0,99678.0,0.00100304]
[1737997786067,0.10550567,99699.0,99675.0,0.200652]
[1737997786283,0.200607,99697.0,99676.0,0.04113357]
[1737997786491,0.09734729,99696.0,99680.0,0.15048]
[1737997786714,0.150471,99687.0,99681.0,0.150479]
[1737997786951,0.150471,99687.0,99680.0,0.15048]
[1737997787167,0.00069657,99688.0,99682.0,0.150477]
[1737997787371,0.0127436,99687.0,99683.0,0.0010031]
[1737997787593,0.0127436,99687.0,99682.0,0.00100307]
[1737997787815,0.0127436,99687.0,99686.0,0.150472]
[1737997788510,0.0127436,99687.0,99664.0,0.023]
[1737997788511,0.0489,99686.0,99659.0,0.000142]
[1737997788720,0.09734729,99685.0,99659.0,0.000142]
[1737997788929,0.24734729,99685.0,99659.0,0.000142]
[1737997789145,0.150503,99666.0,99660.0,0.0200837]
[1737997789359,0.00095625,99682.0,99664.0,0.150505]
[1737997789583,0.09734729,99681.0,99661.0,0.00100326]
[1737997789797,0.150495,99671.0,99662.0,0.15151026]
[1737997790006,0.150491,99674.0,99664.0,0.150505]
[1737997790220,0.1505,99668.0,99665.0,0.02553885]
[1737997790439,0.150511,99660.0,99659.0,0.000142]
[1737997790671,0.39785829,99660.0,99659.0,0.00028877]
[1737997791314,0.24785829,99660.0,99659.0,0.00028877]
[1737997792807,0.00816128,99667.0,99659.0,0.00028877]
[1737997793014,0.15364995,99660.0,99659.0,0.00028877]
[1737997793231,0.00313895,99660.0,99659.0,0.00028877]
[1737997793683,0.00313895,99660.0,99659.0,0.20895165]
[1737997794112,0.00313895,99660.0,99659.0,0.02328877]
[1737997794289,0.15364995,99660.0,99659.0,0.00028877]
[1737997794723,0.15867272,99660.0,99659.0,0.00028877]
[1737997794941,0.25697626,99660.0,99659.0,0.00028877]
[1737997795156,0.25602001,99660.0,99659.0,0.00028877]
[1737997795366,0.15,99656.0,99602.0,0.150598]
[1737997795578,0.15,99656.0,99587.0,0.01]
[1737997795579,0.0758,99615.0,99588.0,0.200826]